bitfinex-derivatives/quotes_SOLF0:USTF0_20260202
["timestamp","ask_amount","ask_price","bid_price","bid_amount"]
[1770041753984,29.22,102.95,102.87,15.887756]
[1770041754286,136.1058,102.96,102.89,15.887756]
[1770041754588,143.6702337,102.96,102.89,15.887756]
[1770041755386,8.7506,102.95,102.89,15.887756]
[1770041756993,7.5644337,102.96,102.89,15.887756]
[1770041759590,136.0914,102.97,102.89,15.887756]
[1770041759895,143.6558337,102.97,102.89,15.887756]
[1770041760787,7.5644337,102.97,102.89,15.887756]
[1770041762298,8.7496,102.96,102.9,16.11513058]
[1770041763499,8.7486,102.98,102.91,16.14133637]
[1770041763797,143.6167337,103.0,102.91,16.14133637]
[1770041764094,8.7478,102.98,102.92,24.89413637]
[1770041764397,7.5644337,103.0,102.93,16.14133637]
[1770041764598,143.5973337,103.02,102.93,16.14133637]
[1770041764991,143.5973337,103.02,102.94,8.7511]
[1770041764992,8.7457,103.01,102.94,8.7511]
[1770041765194,8.7457,103.01,102.95,16.02522119]
[1770041765993,7.5644337,103.02,102.95,16.02522119]
[1770041766197,136.0399,103.01,102.95,16.02522119]
[1770041766499,143.6189337,103.0,102.95,1.05952119]
[1770041766700,8.7469,103.0,102.92,8.7523]
[1770041766899,143.6043337,103.01,102.92,8.7523]
[1770041767801,8.7471,102.99,102.91,372.86]
[1770041767993,136.0515,103.0,102.91,372.86]
[1770041768699,8.7478,102.98,102.92,8.41886408]
[1770041771598,136.0266,103.02,102.93,8.44038158]
[1770041771904,143.5839337,103.03,102.94,8.44038158]
[1770041772203,8.7453,103.01,102.95,8.44038158]
[1770041774402,143.6031337,103.01,102.92,8.43287054]
[1770041775202,16.3105337,103.01,102.92,8.43287054]
[1770041775507,7.5644337,103.03,102.93,8.5248172]
[1770041776707,8.7452,103.02,102.94,8.5248172]
[1770041777807,8.7452,103.02,102.94,17.2752172]
[1770041778010,8.7452,103.02,102.95,8.53245428]
[1770041779310,8.7452,103.02,102.96,8.39639107]
[1770041780908,8.7453,103.01,102.96,8.39639107]
[1770041781112,136.0267,103.02,102.96,8.39639107]
[1770041782415,8.7462,103.0,102.96,8.39639107]
[1770041783517,8.7454,103.01,102.96,8.39639107]
[1770041787518,8.7445,103.02,102.96,8.39639107]
[1770041788618,8.7456,103.01,102.96,8.39639107]
[1770041793523,8.7462,103.0,102.96,8.39639107]
[1770041793719,136.055,103.0,102.94,8.45907934]
[1770041793924,143.6558337,102.97,102.89,8.45907934]
[1770041794225,136.1079,102.96,102.89,8.45907934]
[1770041795423,8.7513,102.94,102.89,8.45907934]
[1770041798820,136.1079,102.96,102.89,8.45907934]
[1770041799025,136.1321,102.94,102.86,8.53582422]
[1770041799627,8.7531,102.92,102.86,8.53582422]
[1770041801722,8.7538,102.91,102.86,8.53582422]
[1770041803724,143.7090337,102.93,102.86,8.53582422]
[1770041804327,136.1615,102.92,102.86,8.53582422]
[1770041804730,8.7548,102.9,102.86,8.53582422]
[1770041806735,8.7548,102.9,102.83,8.57369495]
[1770041807230,8.7555,102.89,102.83,8.57369495]
[1770041808833,143.7358337,102.91,102.83,8.57369495]
[1770041808834,8.7564,102.88,102.83,8.57369495]
[1770041810132,143.7358337,102.91,102.83,8.57369495]
[1770041811534,8.7555,102.89,102.83,8.57369495]
[1770041812437,11.7810895,102.89,102.83,8.57369495]
[1770041813438,3.0255895,102.89,102.84,8.52683434]
[1770041813641,3.0255895,102.9,102.84,8.52683434]
[1770041814340,3.02513814,102.9,102.84,8.52683434]
[1770041814833,3.02513814,102.88,102.84,8.52683434]
[1770041816041,8.7562,102.89,102.84,8.52683434]
[1770041816042,3.02513814,102.87,102.84,8.52683434]
[1770041817138,3.02513814,102.85,102.8,8.49420786]
[1770041817340,3.02513814,102.84,102.8,8.49420786]
[1770041818346,7.56928454,102.88,102.8,8.49420786]
[1770041818643,136.2009,102.89,102.8,8.49420786]
[1770041819247,354.63378454,102.9,102.78,143.91118454]
[1770041819248,8.7564,102.88,102.82,8.48865298]
[1770041820247,143.78998454,102.88,102.82,8.48865298]
[1770041821147,7.56928454,102.88,102.82,8.48865298]
[1770041821550,211.26,102.89,102.82,8.48865298]
[1770041821750,7.56928454,102.9,102.83,8.48106905]
[1770041822343,8.7554,102.9,102.83,17.24126905]
[1770041822548,8.7554,102.9,102.84,8.48106905]
[1770041823250,8.7538,102.91,102.85,8.47650915]
[1770041823745,8.7538,102.91,102.86,8.47650915]
[1770041824250,143.71148454,102.94,102.86,8.47650915]
[1770041825147,8.7529,102.92,102.86,8.47650915]
[1770041825946,8.754,102.91,102.86,8.47650915]
[1770041826651,8.7531,102.92,102.86,8.47650915]
[1770041828555,136.1738,102.91,102.84,8.46208447]
[1770041829457,8.7556,102.89,102.84,8.46208447]
[1770041832962,8.7564,102.88,102.84,8.46208447]
[1770041833261,7.56928454,102.9,102.84,8.46208447]
[1770041834459,16.32398454,102.9,102.84,8.46208447]
[1770041835057,8.7547,102.9,102.84,8.46208447]
[1770041836160,8.7547,102.9,102.85,8.45945864]
[1770041838062,8.7537,102.92,102.86,8.44053889]
[1770041839363,8.7537,102.92,102.87,8.42972528]
[1770041839761,136.1575,102.92,102.85,8.42972773]
[1770041839962,143.72678454,102.92,102.85,8.42972773]
[1770041840266,8.7555,102.89,102.85,8.42972773]
[1770041840465,11.78091855,102.89,102.85,8.42972773]
[1770041841360,11.78011855,102.9,102.85,8.42972773]
[1770041842267,3.02541855,102.9,102.85,8.42972773]
[1770041842668,3.02541855,102.89,102.85,8.42972773]
[1770041845273,11.78101855,102.89,102.85,8.42972773]
[1770041847274,8.7556,102.89,102.85,8.42972773]
[1770041847471,11.78011855,102.9,102.85,8.42972773]
[1770041849569,8.7547,102.9,102.85,8.42972773]
[1770041850073,11.78011855,102.9,102.85,8.42972773]
[1770041851474,3.02541855,102.91,102.85,8.42972773]
[1770041851774,3.02541855,102.9,102.85,8.42972773]
[1770041853477,11.78011855,102.9,102.85,8.42972773]
[1770041853681,3.02541855,102.88,102.83,8.40658355]
[1770041854075,8.7573,102.87,102.83,8.40658355]
[1770041854279,3.02541855,102.87,102.79,8.40658355]
[1770041854475,3.02541855,102.86,102.79,8.40658355]
[1770041854777,349.6452,102.9,102.8,8.40658355]
[1770041854977,3.02541855,102.87,102.81,8.40273554]
[1770041855673,3.02541855,102.88,102.82,8.40273554]
[1770041856371,3.02541855,102.88,102.83,8.40273554]
[1770041857380,3.02541855,102.87,102.83,8.40273554]
[1770041859383,3.02541855,102.88,102.83,8.40273554]
[1770041859985,8.7555,102.89,102.84,8.49863852]
[1770041859986,11.78091855,102.89,102.84,8.49863852]
[1770041860981,3.02541855,102.9,102.84,8.49863852]
[1770041861287,3.02541855,102.9,102.85,8.50144942]
[1770041862287,11.78011855,102.9,102.85,8.50144942]
[1770041864387,8.7547,102.9,102.85,8.50144942]
[1770041864681,3.02541855,102.9,102.85,8.50144942]
[1770041865584,136.1513,102.93,102.85,8.50144942]
[1770041865788,11.77841855,102.92,102.86,8.46515425]
[1770041866189,3.02541855,102.91,102.86,8.46515425]
[1770041866891,3.02541855,102.89,102.86,8.46515425]
[1770041867084,3.02541855,102.9,102.86,8.46515425]
[1770041869190,11.78011855,102.9,102.86,8.46515425]
[1770041869391,3.02541855,102.89,102.86,8.46515425]
[1770041870793,8.7557,102.89,102.84,8.44311091]
[1770041871091,3.02541855,102.88,102.84,8.44311091]
[1770041871592,11.78111855,102.89,102.84,8.44311091]
[1770041872993,3.02541855,102.9,102.84,8.44311091]
[1770041874495,3.0248494,102.9,102.85,8.63042644]
[1770041876194,11.7796494,102.9,102.85,8.63042644]
[1770041876600,3.0248494,102.86,102.82,8.61059172]
[1770041877995,3.0248494,102.87,102.82,8.61059172]
[1770041878801,11.7812494,102.88,102.82,8.61059172]
[1770041878997,3.0248494,102.88,102.83,8.55674482]
[1770041881502,11.7804494,102.89,102.83,8.55674482]
[1770041882703,3.0248494,102.89,102.83,8.55674482]
[1770041883603,3.0248494,102.87,102.83,8.55674482]
[1770041883802,3.0248494,102.88,102.83,8.55674482]
[1770041884804,3.0248494,102.89,102.83,8.55674482]
[1770041887805,3.0248494,102.89,102.84,8.64291438]
[1770041889410,3.0248494,102.9,102.84,17.40251438]
[1770041889611,3.0248494,102.9,102.85,8.65876173]
[1770041889814,3.0248494,102.91,102.85,8.65876173]
[1770041890714,3.0248494,102.92,102.85,8.65876173]
[1770041891410,3.0248494,102.92,102.87,8.66624586]
[1770041891912,11.7769494,102.93,102.87,8.66624586]
[1770041892314,11.7769494,102.93,102.87,17.42334586]
[1770041893214,3.0248494,102.92,102.87,17.42334586]
[1770041894708,3.0248494,102.92,102.87,8.66624586]
[1770041896616,3.0248494,102.91,102.87,8.66624586]
[1770041897017,3.0248494,102.89,102.85,8.62653365]
[1770041898207,3.0248494,102.88,102.84,8.62653365]
[1770041899617,8.7556,102.89,102.84,8.62653365]
[1770041899618,3.0248494,102.87,102.84,8.62653365]
[1770041899815,8.758,102.86,102.82,8.66483917]
[1770041900023,3.0248494,102.85,102.82,8.66483917]
[1770041900314,136.1974,102.89,102.82,8.66483917]
[1770041900518,3.0248494,102.86,102.82,8.66483917]
[1770041901008,136.2162,102.88,102.8,8.77717763]
[1770041901211,3.0248494,102.85,102.8,8.77717763]
[1770041903718,11.7838494,102.85,102.8,8.77717763]
[1770041904423,3.0248494,102.85,102.8,8.77717763]
[1770041905222,3.0248494,102.84,102.8,8.77717763]
[1770041905730,3.0248494,102.83,102.8,8.77717763]
[1770041907232,3.0248494,102.84,102.8,8.77717763]
[1770041908130,3.0248494,102.83,102.8,8.77717763]
[1770041909120,3.0248494,102.82,102.77,8.73176618]
[1770041910230,3.0248494,102.83,102.77,8.73176618]
[1770041910731,3.0248494,102.83,102.78,8.73176618]
[1770041911424,3.0248494,102.82,102.78,8.73176618]
[1770041913830,8.7616,102.82,102.78,8.73176618]
[1770041914031,11.7864494,102.82,102.78,8.73176618]
[1770041914825,8.7605,102.84,102.78,8.73176618]
[1770041915038,3.0248494,102.82,102.78,8.73176618]
[1770041916334,3.0248494,102.83,102.78,8.73176618]
[1770041917432,3.0248494,102.82,102.78,8.73176618]
[1770041923243,11.7846494,102.84,102.78,8.73176618]
[1770041924634,8.7598,102.84,102.78,8.73176618]
[1770041924834,11.7846494,102.84,102.78,8.73176618]
[1770041925030,11.7855494,102.83,102.78,8.73176618]
[1770041926431,8.7616,102.82,102.78,8.73176618]
[1770041926633,11.7864494,102.82,102.78,8.73176618]
[1770041926940,3.0248494,102.83,102.78,8.73176618]
[1770041931743,3.0248494,102.84,102.79,8.59250235]
[1770041933946,3.0248494,102.83,102.79,8.59250235]
[1770041934641,3.0248494,102.82,102.79,8.59250235]
[1770041936439,3.02979127,102.82,102.79,8.59250235]
[1770041936941,3.02979127,102.81,102.77,17.31873408]
[1770041937144,3.02979127,102.81,102.78,8.55313408]
[1770041939247,3.02979127,102.81,102.76,8.53787957]
[1770041939647,136.2635,102.84,102.76,8.53787957]
[1770041939648,3.02979127,102.8,102.76,8.53787957]
[1770041940353,136.2913,102.82,102.74,8.53787957]
[1770041940547,3.02979127,102.76,102.72,8.53787957]
[1770041940853,3.02979127,102.74,102.69,8.53787957]
[1770041941052,136.3301,102.79,102.69,8.53787957]
[1770041941244,3.02979127,102.79,102.73,8.53216103]
[1770041941552,3.02979127,102.8,102.74,8.53216103]
[1770041941862,11.79269127,102.81,102.75,8.53216103]
[1770041942152,3.02979127,102.8,102.75,8.53216103]
[1770041943054,11.79309127,102.8,102.75,8.53216103]
[1770041943254,3.02979127,102.79,102.75,8.53216103]
[1770041944257,3.02979127,102.8,102.75,8.53216103]
[1770041944459,11.79339127,102.8,102.75,8.53216103]
[1770041944755,3.02979127,102.8,102.75,8.53216103]
[1770041946956,3.02979127,102.81,102.75,8.53216103]
[1770041948059,3.02979127,102.8,102.75,8.53216103]
[1770041949158,8.7617,102.82,102.75,8.53216103]
[1770041949358,8.7626,102.81,102.75,8.53216103]
[1770041949661,3.02979127,102.79,102.75,8.53216103]
[1770041950854,3.02979127,102.81,102.75,8.53216103]
[1770041951057,3.02979127,102.8,102.75,8.53216103]
[1770041953658,8.7614,102.82,102.75,8.53216103]
[1770041953857,11.79119127,102.82,102.76,8.4631561]
[1770041954265,3.02979127,102.81,102.76,8.4631561]
[1770041955359,3.02979127,102.8,102.76,8.4631561]
[1770041956565,3.02979127,102.81,102.76,8.4631561]
[1770041957161,3.02979127,102.8,102.76,8.4631561]
[1770041958362,11.79209127,102.81,102.76,8.4631561]
[1770041958858,136.2698,102.84,102.74,3.02979127]
[1770041958859,136.2906,102.82,102.74,8.49643936]
[1770041959058,3.02979127,102.78,102.74,8.49643936]
[1770041959563,8.764,102.79,102.73,8.45365917]
[1770041959760,3.02979127,102.78,102.73,8.45365917]
[1770041960259,8.765,102.78,102.73,8.45365917]
[1770041961259,8.7671,102.76,102.7,8.43092563]
[1770041961463,136.304,102.81,102.73,11.4607169]
[1770041961666,3.02979127,102.8,102.75,8.43092563]
[1770041961861,343.1876,102.83,102.76,8.43092563]
[1770041961862,8.7613,102.83,102.76,8.43092563]
[1770041962065,136.2484,102.86,102.77,11.4607169]
[1770041962266,3.02979127,102.83,102.78,8.43092563]
[1770041962466,11.79059127,102.83,102.78,8.43092563]
[1770041963671,8.7608,102.83,102.78,8.43092563]
[1770041964564,11.79059127,102.83,102.78,8.43092563]
[1770041964761,136.2911,102.82,102.78,2.563e-05]
[1770041964966,139.32089127,102.82,102.78,2.563e-05]
[1770041965363,8.7625,102.81,102.78,2.563e-05]
[1770041966371,145.0406,102.83,102.78,2.563e-05]
[1770041966571,3.02979127,102.82,102.78,2.563e-05]
[1770041967773,3.02979127,102.81,102.78,2.563e-05]
[1770041968469,3.02979127,102.81,102.75,4.15760628]
[1770041968674,11.79149127,102.82,102.76,4.15760628]
[1770041968875,3.02979127,102.81,102.76,4.15760628]
[1770041969578,3.02979127,102.82,102.76,4.15760628]
[1770041971777,3.02979127,102.82,102.77,3.85884109]
[1770041971977,3.02979127,102.83,102.77,3.85884109]
[1770041972178,3.02979127,102.82,102.77,3.85884109]
[1770041974070,3.02979127,102.83,102.77,3.85884109]
[1770041974276,3.02979127,102.82,102.77,3.85884109]
[1770041975978,3.02979127,102.81,102.76,3.86130446]
[1770041976572,3.02979127,102.82,102.77,3.86130446]
[1770041978289,3.02979127,102.82,102.77,12.62690446]
[1770041978680,3.02979127,102.82,102.77,3.86130446]
[1770041979284,3.02979127,102.81,102.77,3.86130446]
[1770041981884,3.02979127,102.8,102.77,3.86130446]
[1770041982090,3.02979127,102.8,102.75,3.84605755]
[1770041982587,3.02979127,102.78,102.73,3.84605755]
[1770041983683,3.02979127,102.76,102.71,3.84935136]
[1770041984783,3.02979127,102.77,102.71,3.84935136]
[1770041984983,3.02979127,102.75,102.71,3.84935136]
[1770041986486,3.02979127,102.76,102.69,3.79817307]
[1770041986784,3.02979127,102.76,102.7,3.79817307]
[1770041987791,8.7648,102.79,102.71,3.82279575]
[1770041987989,3.02979127,102.77,102.71,3.82279575]
[1770041988188,3.02979127,102.76,102.71,3.82279575]
[1770041988989,3.02979127,102.76,102.72,3.78935147]
[1770041989687,3.02979127,102.77,102.72,3.78935147]
[1770041989995,217.1432,102.8,102.73,3.78919093]
[1770041990293,3.02979127,102.78,102.73,3.78919093]
[1770041992696,3.02979127,102.77,102.73,3.78919093]
[1770041992998,3.02979127,102.76,102.73,3.78919093]
[1770041993495,3.02979127,102.77,102.73,3.78919093]
[1770041994090,3.08332021,102.77,102.73,3.78919093]
[1770041995602,3.02979127,102.76,102.72,8.7695]
[1770041995791,3.02979127,102.76,102.72,12.52307215]
[1770041996495,3.03302198,102.76,102.72,12.52307215]
[1770041996697,3.03302198,102.76,102.72,3.75357215]
[1770041997493,0.14348159,102.73,102.65,3.70654283]
[1770041997693,207.52,102.8,102.67,3.51205177]
[1770041997694,0.14348159,102.76,102.67,3.51205177]
[1770041997892,3.17650357,102.75,102.69,3.51205177]
[1770041998093,3.03302198,102.76,102.7,3.51205177]
[1770041998290,80.83650357,102.77,102.7,3.51205177]
[1770041998491,3.03302198,102.76,102.7,3.51205177]
[1770041998891,6.20952555,102.76,102.7,3.51205177]
[1770041999592,343.77,102.79,102.71,3.51205177]
[1770041999593,6.326033,102.77,102.71,3.51205177]
[1770041999991,6.326033,102.76,102.71,3.51205177]
[1770042000297,3.03302198,102.75,102.71,3.51205177]
[1770042000799,3.03302198,102.74,102.68,3.51205177]
[1770042001496,6.25774482,102.75,102.69,3.51205177]
[1770042001696,3.03302198,102.76,102.7,3.51205177]
[1770042001897,3.03302198,102.77,102.71,3.51205177]
[1770042002198,6.25774482,102.77,102.71,3.51205177]
[1770042002402,6.25774482,102.75,102.69,3.51205177]
[1770042002899,3.03302198,102.76,102.7,3.51205177]
[1770042003099,6.25774482,102.77,102.71,3.51205177]
[1770042003592,3.03302198,102.78,102.72,3.51205177]
[1770042003794,6.26519933,102.79,102.73,3.51205177]
[1770042004494,3.23217735,102.79,102.73,3.51205177]
[1770042004699,6.26519933,102.79,102.73,3.51205177]
[1770042005499,6.20655082,102.81,102.75,3.51205177]
[1770042005700,3.03302198,102.82,102.76,3.51205177]
[1770042005999,6.20655082,102.83,102.77,3.51205177]
[1770042006397,3.03302198,102.82,102.77,3.51205177]
[1770042007101,6.20655082,102.83,102.77,3.51205177]
[1770042007294,6.20655082,102.83,102.78,3.51205177]
[1770042008901,3.13287792,102.85,102.79,3.51205177]
[1770042009101,3.13287792,102.85,102.8,3.51205177]
[1770042009401,3.03302198,102.86,102.81,12.27415177]
[1770042009791,3.11974845,102.87,102.81,3.51205177]
[1770042010192,6.15277043,102.87,102.81,3.51205177]
[1770042010500,3.03302198,102.85,102.81,3.51205177]
[1770042010702,6.15277043,102.85,102.79,3.51205177]
[1770042011593,3.11974845,102.85,102.8,3.51205177]
[1770042011792,206.52,102.88,102.81,3.51205177]
[1770042011793,3.03302198,102.87,102.81,3.51205177]
[1770042012196,212.65972445,102.88,102.81,6.54507375]
[1770042012593,6.13972445,102.88,102.81,6.54507375]
[1770042012799,6.13972445,102.88,102.81,3.51205177]
[1770042013297,3.03302198,102.87,102.81,3.51205177]
[1770042013503,6.19186279,102.84,102.76,3.51205177]
[1770042013697,3.03302198,102.83,102.77,3.51205177]
[1770042013901,6.19186279,102.84,102.78,3.51205177]
[1770042014203,3.15884081,102.84,102.78,3.51205177]
[1770042014404,3.15884081,102.84,102.79,3.51205177]
[1770042014800,6.19186279,102.86,102.79,3.51205177]
[1770042015205,14.94996279,102.86,102.79,3.51205177]
[1770042015807,3.03302198,102.85,102.79,3.51205177]
[1770042016306,6.20626931,102.85,102.79,3.51205177]
[1770042019409,3.03302198,102.84,102.79,3.51205177]
[1770042019606,3.17324733,102.85,102.8,3.51205177]
[1770042019907,2.95798942,102.87,102.81,3.55629503]
[1770042020103,3.03302198,102.88,102.82,3.55629503]
[1770042020306,14.74479421,102.89,102.82,6.58931701]
[1770042021207,3.03302198,102.9,102.84,3.55629503]
[1770042021406,6.15774953,102.91,102.85,3.55629503]
[1770042022505,3.12472755,102.91,102.85,3.55629503]
[1770042023307,3.13281276,102.9,102.85,3.55629503]
[1770042026413,3.05467604,102.92,102.85,3.55629503]
[1770042026617,3.05467604,102.94,102.86,3.55629503]
[1770042027020,2.90241255,102.96,102.89,3.55629503]
[1770042027618,2.90241255,102.94,102.87,8.7566]
[1770042028019,2.90241255,102.94,102.87,12.31289503]
[1770042028814,2.90241255,102.94,102.88,12.31229503]
[1770042029017,3.54886855,102.96,102.89,3.55629503]
[1770042029721,3.54886855,102.96,102.9,12.31069503]
[1770042029920,3.54886855,102.96,102.9,3.55629503]
[1770042030317,3.54886855,102.96,102.91,8.7537]
[1770042030721,11.11013709,102.98,102.91,12.30999503]
[1770042031017,3.54886855,102.98,102.92,3.55629503]
[1770042031224,11.11013709,103.0,102.92,3.55629503]
[1770042031612,19.85643709,103.0,102.93,12.30809503]
[1770042032114,3.54886855,103.02,102.94,139.68449503]
[1770042032320,3.54886855,103.01,102.95,8.7502]
[1770042032725,3.54886855,103.03,102.96,3.55629503]
[1770042033717,3.54886855,103.02,102.95,8.7497]
[1770042034022,11.11013709,103.0,102.94,3.55629503]
[1770042034821,19.85673709,103.0,102.94,3.55629503]
[1770042035023,11.11013709,103.0,102.94,3.55629503]
[1770042035222,3.54886855,103.0,102.94,3.55629503]
[1770042036826,11.11013709,103.02,102.95,3.55629503]
[1770042037325,12.29426855,103.01,102.95,3.55629503]
[1770042037515,12.29426855,103.01,102.92,8.7522]
[1770042037516,3.54886855,103.01,102.93,3.55629503]
[1770042037718,3.54886855,103.0,102.93,3.55629503]
[1770042037921,3.54886855,102.99,102.93,3.55629503]
[1770042041217,3.54886855,102.99,102.9,144.9365]
[1770042041422,3.54886855,102.99,102.91,3.55629503]
[1770042042127,12.29596855,102.99,102.92,12.30919503]
[1770042043229,12.29596855,102.99,102.93,12.30829503]
[1770042043230,3.54886855,102.99,102.93,12.30829503]
[1770042044329,3.54886855,102.99,102.93,3.55629503]
[1770042044632,3.54886855,102.99,102.91,12.30919503]
[1770042046129,3.54886855,102.99,102.92,3.55629503]
[1770042046330,8.7479,102.98,102.92,3.55629503]
[1770042047133,3.54886855,102.99,102.92,12.30909503]
[1770042047633,3.54886855,102.99,102.93,3.74654523]
[1770042048038,3.54886855,102.99,102.92,12.49934523]
[1770042049342,8.7478,102.98,102.92,12.49934523]
[1770042050541,12.29586855,102.99,102.93,12.39841485]
[1770042051044,12.29586855,102.99,102.93,3.64641485]
[1770042051441,8.7479,102.98,102.93,3.64641485]
[1770042052138,8.7479,102.98,102.92,8.7529]
[1770042052344,3.50213168,102.96,102.91,12.40011485]
[1770042054946,12.25173168,102.96,102.9,3.64641485]
[1770042055346,3.46151244,102.95,102.86,3.64641485]
[1770042055546,12.21351244,102.94,102.88,12.40271485]
[1770042055947,3.46151244,102.96,102.9,3.64641485]
[1770042056149,3.46151244,102.98,102.9,3.64641485]
[1770042056446,3.46151244,102.98,102.91,12.39941485]
[1770042058951,12.20931244,102.98,102.91,12.39941485]
[1770042060652,12.20931244,102.98,102.92,3.64641485]
[1770042062555,3.46151244,102.98,102.92,12.39861485]
[1770042063152,3.46151244,102.98,102.93,3.64641485]
[1770042063456,3.46151244,102.98,102.93,12.39841485]
[1770042063656,8.747,102.99,102.93,12.39841485]
[1770042066358,11.76686177,102.99,102.93,12.39841485]
[1770042067258,3.01986177,102.98,102.93,3.64641485]
[1770042068458,6.3981827,102.97,102.91,8.7534]
[1770042068656,3.01986177,102.96,102.91,12.39981485]
[1770042068956,43.09455299,103.17,103.06,135.9708]
[1770042069162,43.09455299,103.17,103.08,3.01986177]
[1770042069163,40.2012972,103.16,103.08,3.01986177]
[1770042069357,40.2012972,103.14,103.07,491.01846177]
[1770042069660,40.2012972,103.14,103.09,135.9312]
[1770042069861,40.28404631,103.19,103.13,135.8784]
[1770042070159,43.30390808,103.18,103.11,387.56]
[1770042070356,40.28404631,103.18,103.11,532.2021]
[1770042071158,40.28404631,103.18,103.12,144.6246]
[1770042072464,40.28404631,103.18,103.13,144.6139]
[1770042072761,40.28404631,103.18,103.13,8.7347]
[1770042074257,40.28404631,103.18,103.11,135.9058]
[1770042075464,40.28404631,103.18,103.11,144.6424]
[1770042075665,40.28404631,103.18,103.12,5.75136703]
[1770042075865,40.28404631,103.18,103.13,5.75136703]
[1770042076065,40.28404631,103.18,103.14,5.75136703]
[1770042076261,40.28404631,103.18,103.11,144.6424]
[1770042078764,40.28404631,103.18,103.11,8.7366]
[1770042078965,44.50440115,103.17,103.11,8.7366]
[1770042079765,44.50440115,103.17,103.1,387.16]
[1770042083567,36.50116195,103.2,103.15,8.7329]
[1770042083770,36.50116195,103.2,103.13,387.04]
[1770042083971,44.02256939,103.22,103.14,135.8661]
[1770042084268,36.49997416,103.22,103.15,8.7331]
[1770042085173,36.49997416,103.22,103.13,522.9188]
[1770042086269,36.49997416,103.22,103.14,387.0]
[1770042086463,36.49997416,103.22,103.14,395.734]
[1770042086660,45.22777416,103.22,103.14,395.734]
[1770042087967,45.22777416,103.22,103.14,395.674]
[1770042088271,45.22777416,103.22,103.15,5.65053611]
[1770042088465,45.22777416,103.22,103.14,395.674]
[1770042088666,45.22777416,103.22,103.15,5.6486253]
[1770042088871,45.22777416,103.22,103.14,395.674]
[1770042089072,45.22777416,103.22,103.15,5.6486253]
[1770042089370,45.22777416,103.22,103.14,395.674]
[1770042089570,45.22777416,103.22,103.15,5.64627991]
[1770042089766,36.37874166,103.2,103.12,522.7888]
[1770042089971,36.37874166,103.2,103.13,5.64646402]
[1770042090165,36.37874166,103.2,103.1,135.9155]
[1770042090368,36.37874166,103.2,103.11,141.55060147]
[1770042090566,36.37655478,103.22,103.14,135.8655]
[1770042090769,36.37655478,103.24,103.17,135.823]
[1770042090964,36.41033218,103.26,103.19,8.7299]
[1770042091571,36.41033218,103.28,103.21,8.7278]
[1770042092072,36.41033218,103.28,103.22,8.7272]
[1770042092277,36.40852697,103.3,103.22,8.7272]
[1770042092474,36.40852697,103.3,103.21,522.652]
[1770042092675,36.40852697,103.3,103.2,386.86]
[1770042092676,36.40852697,103.28,103.2,386.86]
[1770042092866,36.40852697,103.28,103.19,135.8007]
[1770042093070,36.40852697,103.28,103.2,392.49670918]
[1770042093270,36.40852697,103.28,103.2,386.86]
[1770042093466,36.40852697,103.28,103.2,395.589]
[1770042093675,36.40852697,103.28,103.2,135.7874]
[1770042093975,36.40852697,103.28,103.21,8.7281]
[1770042094169,36.40852697,103.28,103.2,386.82]
[1770042094369,36.40852697,103.28,103.2,522.6042]
[1770042094875,43.59839165,103.3,103.22,8.7271]
[1770042095470,241.41579642,103.32,103.23,144.4742]
[1770042095974,241.41579642,103.32,103.24,8.7255]
[1770042096370,36.07579642,103.32,103.24,8.7255]
[1770042097174,36.07579642,103.32,103.24,386.72]
[1770042097970,44.79509642,103.32,103.24,395.4455]
[1770042099378,36.07579642,103.32,103.25,8.7248]
[1770042099776,36.07579642,103.32,103.24,386.72]
[1770042100274,36.07579642,103.32,103.25,8.7248]
[1770042101373,36.07579642,103.32,103.26,8.724]
[1770042102374,43.95274085,103.34,103.27,8.7231]
[1770042103377,36.43923172,103.33,103.25,8.7244]
[1770042103678,36.43923172,103.31,103.25,8.7244]
[1770042106274,36.43923172,103.31,103.23,144.4733]
[1770042106479,36.43923172,103.31,103.23,135.7474]
[1770042107380,36.43923172,103.31,103.24,8.7257]
[1770042108779,36.43923172,103.31,103.23,8.7266]
[1770042110080,36.43923172,103.31,103.24,8.7257]
[1770042110377,36.43923172,103.31,103.23,522.1868]
[1770042110878,36.53416026,103.36,103.28,135.6821]
[1770042111182,36.53416026,103.36,103.29,135.669]
[1770042111381,36.53416026,103.36,103.28,135.6821]
[1770042112281,36.53416026,103.36,103.3,8.7207]
[1770042112980,44.02135369,103.38,103.28,522.1002]
[1770042113883,44.02074212,103.36,103.29,8.7215]
[1770042114081,36.49814689,103.36,103.29,8.7215]
[1770042114379,36.49814689,103.36,103.3,8.7206]
[1770042114572,36.49814689,103.36,103.28,522.1002]
[1770042116381,36.49814689,103.36,103.29,8.7215]
[1770042116578,36.49814689,103.36,103.28,522.1002]
[1770042117182,36.49814689,103.36,103.3,8.7207]
[1770042117880,36.49814689,103.36,103.28,386.42]
[1770042118482,45.21384689,103.36,103.29,8.7214]